[Event "45th FIDE Womens Olympiad 2024"]
[Site "Budapest"]
[Date "2024.09.13"]
[Round "3.13"]
[White "Tsolakidou, Stavroula"]
[Black "Kashlinskaya, Alina"]
[Result "1/2-1/2"]
[ECO "A23"]
[WhiteElo "2444"]
[BlackElo "2490"]
[Annotator "RC"]
[PlyCount "117"]
[EventDate "2024.09.05"]
[EventType "team-tourn"]
[EventCountry "HUN"]
[SourceTitle "playchess.com"]
[Source "ChessBase"]
[SourceQuality "1"]
[WhiteTeam "Greece"]
[BlackTeam "Poland"]
[WhiteTeamCountry "GRE"]
[BlackTeamCountry "POL"]
[TimeControl "40/5400+30:1800+30"]

1. c4 {[%emt 0:00:04]} e5 {[%emt 0:00:10]} 2. g3 {[%emt 0:00:16]} Nf6 {[%emt 0:00:06]} 3. Bg2 {[%emt 0:00:07]} Bc5 {[%emt 0:00:09]} 4. Nc3 {[%emt 0:02:10]} c6 {[%emt 0:01:03]} 5. e3 {[%emt 0:19:05]} d5 {[%emt 0:01:05]} 6. cxd5 {[%emt 0:03:26]} Nxd5 {[%emt 0:03:43]} 7. Nxd5 {[%emt 0:14:58]} cxd5 {[%emt 0:00:11]} 8. Ne2 {[%emt 0:00:15]} O-O {[%emt 0:08:27]} 9. O-O {[%emt 0:03:22]} Nc6 {[%emt 0:01:43]} 10. d4 {[%emt 0:09:07]} exd4 {[%emt 0:00:18]} 11. exd4 {[%emt 0:00:33]} Bb6 {[%emt 0:00:15]} 12. Nf4 {[%emt 0:02:33]} Bxd4 {[%emt 0:17:37]} 13. Qb3 {[%emt 0:05:28]} a5 {[%emt 0:24:33]} 14. a4 {[%emt 0:10:43]} Ra6 {[%emt 0:08:22]} 15. Nxd5 {[%emt 0:03:16]} Be6 {[%emt 0:09:34]} 16. Qxb7 {[%emt 0:05:10]} Qc8 {[%emt 0:07:24]} 17. Qb5 {[%emt 0:03:35]} Bxd5 {[%emt 0:06:43]} 18. Bxd5 {[%emt 0:01:35]} Rb6 {[%emt 0:02:56]} 19. Qc4 {[%emt 0:00:46]} Qd7 {[%emt 0:00:35]} 20. Be3 {[%emt 0:05:02]} Bxe3 {[%emt 0:00:54]} 21. fxe3 {[%emt 0:00:05]} Ne5 {[%emt 0:00:46]} 22. Qd4 {[%emt 0:01:09]} Qd6 {[%emt 0:00:24]} 23. Rf5 {[%emt 0:01:27]} Nd7 {[%emt 0:00:46]} 24. Rd1 {[%emt 0:01:34]} Qg6 {[%emt 0:02:41]} 25. Rdf1 {[%emt 0:02:55]} Rb4 {[%emt 0:00:32]} 26. Bxf7+ {[%emt 0:04:10]} Rxf7 {[%emt 0:00:03]} 27. Qxd7 {[%emt 0:00:04]} Qxf5 {[%emt 0:00:22]} 28. Qxf5 {[%emt 0:00:20]} Rxf5 {[%emt 0:00:04]} 29. Rxf5 {[%emt 0:00:04]} Rxa4 {[%emt 0:00:10]} 30. Kg2 {[%emt 0:01:29]} Rb4 {[%emt 0:00:18]} 31. Rxa5 {[%emt 0:00:26]} Rxb2+ {[%emt 0:00:04]} 32. Kh3 {[%emt 0:00:14]} Re2 {[%emt 0:00:12]} 33. Re5 {[%emt 0:00:11]} h5 {[%emt 0:02:02]} 34. e4 {[%emt 0:01:14]} Kf7 {[%emt 0:00:47]} 35. Rf5+ {[%emt 0:00:31]} Kg6 {[%emt 0:00:23]} 36. Re5 {[%emt 0:00:31]} Kf6 {[%emt 0:00:30]} 37. Rxh5 {[%emt 0:00:27]} Rxe4 {[%emt 0:00:05]} 38. Ra5 {[%emt 0:00:32]} Re2 {[%emt 0:01:14]} 39. g4 {[%emt 0:00:10]} Rb2 {[%emt 0:01:50]} 40. Rf5+ {[%emt 0:00:42]} Kg6 {[%emt 0:00:55]} 41. Kg3 {[%emt 0:00:58]} Rb3+ {[%emt 0:04:34]} 42. Rf3 {[%emt 0:02:57]} Rb5 {[%emt 0:01:27]} 43. h4 {[%emt 0:00:15]} Kh6 {[%emt 0:00:34]} 44. Re3 {[%emt 0:15:15]} Rb6 {[%emt 0:03:53]} 45. Re5 {[%emt 0:02:23]} Kg6 {[%emt 0:03:29]} 46. h5+ {[%emt 0:00:37]} Kh6 {[%emt 0:01:13]} 47. Kh4 {[%emt 0:00:21]} Rb4 {[%emt 0:00:19]} 48. Re6+ {[%emt 0:00:16]} Kh7 {[%emt 0:00:03]} 49. Kg5 {[%emt 0:00:14]} Rb5+ {[%emt 0:00:05]} 50. Kh4 {[%emt 0:02:29]} Rb4 {[%emt 0:00:07]} 51. Re7 {[%emt 0:00:34]} Kh6 {[%emt 0:01:33]} 52. Re8 {[%emt 0:00:51]} Kh7 {[%emt 0:00:09]} 53. Rf8 {[%emt 0:00:17]} Ra4 {[%emt 0:01:06]} 54. Kg3 {[%emt 0:02:56]} g6 {[%emt 0:00:51]} 55. Rf7+ {[%emt 0:00:22]} Kg8 {[%emt 0:00:04]} 56. hxg6 {[%emt 0:00:09]} Ra6 {[%emt 0:00:03]} 57. Kf4 {[%emt 0:00:55]} Rxg6 {[%emt 0:00:09]} 58. Ra7 {[%emt 0:00:05]} Rb6 {[%emt 0:00:03]} 59. g5 {[%emt 0:00:51]} 1/2-1/2

[Event "45th FIDE Womens Olympiad 2024"]
[Site "Budapest"]
[Date "2024.09.13"]
[Round "3.14"]
[White "Socko, Monika"]
[Black "Avramidou, Anastasia"]
[Result "1/2-1/2"]
[ECO "B14"]
[WhiteElo "2422"]
[BlackElo "2290"]
[Annotator "RC"]
[PlyCount "161"]
[EventDate "2024.09.05"]
[EventType "team-tourn"]
[EventCountry "HUN"]
[SourceTitle "playchess.com"]
[Source "ChessBase"]
[SourceQuality "1"]
[WhiteTeam "Poland"]
[BlackTeam "Greece"]
[WhiteTeamCountry "POL"]
[BlackTeamCountry "GRE"]
[TimeControl "40/5400+30:1800+30"]

1. d4 {[%emt 0:00:03]} Nf6 {[%emt 0:00:18]} 2. c4 {[%emt 0:00:04]} e6 {[%emt 0:00:16]} 3. Nc3 {[%emt 0:00:03]} Bb4 {[%emt 0:02:28]} 4. Bd2 {[%emt 0:00:04]} O-O {[%emt 0:06:16]} 5. Nf3 {[%emt 0:00:12]} d5 {[%emt 0:02:32]} 6. e3 {[%emt 0:00:15]} c5 {[%emt 0:03:21]} 7. a3 {[%emt 0:05:51]} cxd4 {[%emt 0:00:39]} 8. exd4 {[%emt 0:08:37]} Bxc3 {[%emt 0:07:10]} 9. Bxc3 {[%emt 0:00:26]} Ne4 {[%emt 0:01:37]} 10. Rc1 {[%emt 0:00:45]} Nc6 {[%emt 0:05:46]} 11. Bd3 {[%emt 0:09:07]} Nxc3 {[%emt 0:06:41]} 12. Rxc3 {[%emt 0:00:12]} dxc4 {[%emt 0:02:50]} 13. Bxc4 {[%emt 0:03:31]} Ne7 {[%emt 0:06:50]} 14. O-O {[%emt 0:03:16]} Nd5 {[%emt 0:10:09]} 15. Bxd5 {[%emt 0:07:04]} Qxd5 {[%emt 0:00:55]} 16. Re1 {[%emt 0:09:45]} Bd7 {[%emt 0:08:34]} 17. Re5 {[%emt 0:06:53]} Qd6 {[%emt 0:00:11]} 18. Ng5 {[%emt 0:03:28]} f6 {[%emt 0:04:27]} 19. Ne4 {[%emt 0:02:55]} Qe7 {[%emt 0:00:06]} 20. Rh5 {[%emt 0:02:31]} Be8 {[%emt 0:04:47]} 21. Rhh3 {[%emt 0:01:04]} Bg6 {[%emt 0:01:00]} 22. Rhe3 {[%emt 0:01:43]} Rfd8 {[%emt 0:04:33]} 23. Nc5 {[%emt 0:03:15]} e5 {[%emt 0:02:43]} 24. d5 {[%emt 0:05:19]} Qd6 {[%emt 0:05:14]} 25. f3 {[%emt 0:10:58]} Qxd5 {[%emt 0:01:19]} 26. Qxd5+ {[%emt 0:00:05]} Rxd5 {[%emt 0:00:05]} 27. Nxb7 {[%emt 0:00:14]} Rb8 {[%emt 0:04:51]} 28. Rb3 {[%emt 0:07:03]} Bf7 {[%emt 0:02:27]} 29. Rb4 {[%emt 0:00:24]} Rd4 {[%emt 0:03:42]} 30. Rc3 {[%emt 0:03:03]} Rxb4 {[%emt 0:01:35]} 31. axb4 {[%emt 0:00:01]} Rxb7 {[%emt 0:00:09]} 32. Rc8+ {[%emt 0:00:03]} Be8 {[%emt 0:00:06]} 33. Rxe8+ {[%emt 0:00:04]} Kf7 {[%emt 0:00:05]} 34. Rc8 {[%emt 0:00:23]} Rxb4 {[%emt 0:00:39]} 35. Rc7+ {[%emt 0:00:02]} Kg6 {[%emt 0:00:05]} 36. Rxa7 {[%emt 0:00:03]} Rxb2 {[%emt 0:00:05]} 37. h4 {[%emt 0:03:13]} Rb4 {[%emt 0:01:24]} 38. h5+ {[%emt 0:00:11]} Kh6 {[%emt 0:00:19]} 39. Kf2 {[%emt 0:00:02]} e4 {[%emt 0:02:32]} 40. g4 {[%emt 0:02:58]} Rb2+ {[%emt 0:01:01]} 41. Ke3 {[%emt 0:30:09]} exf3 {[%emt 0:30:05]} 42. Kxf3 {[%emt 0:00:03]} Rb1 {[%emt 0:00:32]} 43. Kf4 {[%emt 0:05:36]} Rf1+ {[%emt 0:00:27]} 44. Kg3 {[%emt 0:00:00]} Rg1+ {[%emt 0:00:00]} 45. Kf4 {[%emt 0:00:00]} g6 {[%emt 0:00:00]} 46. hxg6 {[%emt 0:00:00]} hxg6 {[%emt 0:00:00]} 47. Ra6 {[%emt 0:00:00]} Rf1+ {[%emt 0:00:00]} 48. Kg3 {[%emt 0:00:00]} Kg5 {[%emt 0:00:00]} 49. Ra5+ {[%emt 0:00:00]} Kh6 {[%emt 0:00:00]} 50. Ra6 {[%emt 0:00:00]} g5 {[%emt 0:00:00]} 51. Ra7 {[%emt 0:00:00]} Kg6 {[%emt 0:00:00]} 52. Rb7 {[%emt 0:00:00]} Rc1 {[%emt 0:00:00]} 53. Kf3 {[%emt 0:00:00]} Rc3+ {[%emt 0:00:00]} 54. Kf2 {[%emt 0:00:00]} Rc6 {[%emt 0:00:00]} 55. Kf3 {[%emt 0:00:00]} Rc3+ {[%emt 0:00:00]} 56. Kf2 {[%emt 0:00:00]} Rc8 {[%emt 0:00:00]} 57. Kf3 {[%emt 0:00:00]} Rh8 {[%emt 0:00:00]} 58. Ra7 {[%emt 0:00:00]} Rh3+ {[%emt 0:00:00]} 59. Kg2 {[%emt 0:00:00]} Rh7 {[%emt 0:00:00]} 60. Ra6 {[%emt 0:00:00]} Re7 {[%emt 0:00:00]} 61. Kf3 {[%emt 0:00:00]} Kf7 {[%emt 0:00:00]} 62. Rb6 {[%emt 0:00:00]} Rc7 {[%emt 0:00:00]} 63. Ra6 {[%emt 0:00:00]} Ke7 {[%emt 0:00:00]} 64. Rb6 {[%emt 0:00:00]} Rc3+ {[%emt 0:00:00]} 65. Kf2 {[%emt 0:00:00]} Rd3 {[%emt 0:00:00]} 66. Ra6 {[%emt 0:00:00]} Rd6 {[%emt 0:00:00]} 67. Ra3 {[%emt 0:00:00]} Rd4 {[%emt 0:00:00]} 68. Kf3 {[%emt 0:00:00]} Ke6 {[%emt 0:00:00]} 69. Re3+ {[%emt 0:00:00]} Kd5 {[%emt 0:00:00]} 70. Ra3 {[%emt 0:00:00]} Rc4 {[%emt 0:00:00]} 71. Rd3+ {[%emt 0:00:00]} Rd4 {[%emt 0:00:00]} 72. Ra3 {[%emt 0:00:00]} Rf4+ {[%emt 0:00:05]} 73. Kg3 {[%emt 0:00:00]} Rc4 {[%emt 0:00:09]} 74. Re3 {[%emt 0:00:00]} Rc6 {[%emt 0:00:31]} 75. Kf3 {[%emt 0:00:54]} Kd4 {[%emt 0:03:40]} 76. Re4+ {[%emt 0:00:11]} Kd3 {[%emt 0:00:35]} 77. Re3+ {[%emt 0:00:29]} Kd2 {[%emt 0:00:53]} 78. Re2+ {[%emt 0:00:04]} Kd1 {[%emt 0:00:52]} 79. Re8 {[%emt 0:01:13]} Rc3+ {[%emt 0:02:01]} 80. Kf2 {[%emt 0:00:10]} Rc4 {[%emt 0:00:53]} 81. Rd8+ {[%emt 0:00:51]} 1/2-1/2

[Event "45th FIDE Womens Olympiad 2024"]
[Site "Budapest"]
[Date "2024.09.13"]
[Round "3.14"]
[White "Ramas, Carmina Jasmine"]
[Black "Wahid, Chelsea"]
[Result "1-0"]
[ECO "B07"]
[WhiteElo "1712"]
[BlackElo "1482"]
[Annotator "NA"]
[PlyCount "51"]
[EventDate "2024.09.05"]
[EventType "team-tourn"]
[EventCountry "HUN"]
[SourceTitle "playchess.com"]
[Source "ChessBase"]
[SourceQuality "1"]
[WhiteTeam "Guam"]
[BlackTeam "Saint Lucia"]
[WhiteTeamCountry "GMA"]
[TimeControl "40/5400+30:1800+30"]

1. d4 Nf6 2. Bf4 g6 3. Nc3 Bg7 4. e4 d6 5. Qd2 O-O 6. Be2 Nbd7 7. O-O-O e5 8. dxe5 Nxe5 9. Bxe5 Nxe4 10. Nxe4 Bxe5 11. h4 h5 12. Nf3 Bg7 13. Kb1 Be6 14. Nfg5 Bf5 15. Ng3 Qf6 16. Qc3 Qxc3 17. bxc3 Bxc3 18. Nxf5 gxf5 19. Rd3 Be5 20. Bxh5 Kg7 21. f4 Bxf4 22. Rf3 Bxg5 23. hxg5 Rh8 24. Rxf5 Rxh5 25. Rxh5 Kg6 26. g4 1-0

[Event "45th FIDE Womens Olympiad 2024"]
[Site "Budapest"]
[Date "2024.09.13"]
[Round "3.15"]
[White "Pavlidou, Ekaterini"]
[Black "Maltsevskaya, Aleksandra"]
[Result "1-0"]
[ECO "D35"]
[WhiteElo "2141"]
[BlackElo "2404"]
[Annotator "RC"]
[PlyCount "105"]
[EventDate "2024.09.05"]
[EventType "team-tourn"]
[EventCountry "HUN"]
[SourceTitle "playchess.com"]
[Source "ChessBase"]
[SourceQuality "1"]
[WhiteTeam "Greece"]
[BlackTeam "Poland"]
[WhiteTeamCountry "GRE"]
[BlackTeamCountry "POL"]
[TimeControl "40/5400+30:1800+30"]

1. d4 {[%emt 0:00:16]} d5 {[%emt 0:00:08]} 2. c4 {[%emt 0:00:17]} e6 {[%emt 0:00:10]} 3. Nc3 {[%emt 0:00:31]} Nf6 {[%emt 0:00:10]} 4. cxd5 {[%emt 0:00:19]} exd5 {[%emt 0:00:07]} 5. Bg5 {[%emt 0:00:14]} Be7 {[%emt 0:00:12]} 6. e3 {[%emt 0:00:54]} h6 {[%emt 0:00:09]} 7. Bh4 {[%emt 0:00:04]} Bg4 {[%emt 0:00:07]} 8. Qc2 {[%emt 0:08:39]} O-O {[%emt 0:02:04]} 9. h3 {[%emt 0:04:31]} Be6 {[%emt 0:00:20]} 10. Nf3 {[%emt 0:04:46]} c5 {[%emt 0:11:01]} 11. Rd1 {[%emt 0:03:07]} Nc6 {[%emt 0:10:01]} 12. Be2 {[%emt 0:03:47]} cxd4 {[%emt 0:22:11]} 13. Nxd4 {[%emt 0:04:07]} Nxd4 {[%emt 0:01:11]} 14. Rxd4 {[%emt 0:00:22]} Rc8 {[%emt 0:00:05]} 15. Bf3 {[%emt 0:05:54]} Bc5 {[%emt 0:11:08]} 16. Rd2 {[%emt 0:02:09]} Bb4 {[%emt 0:11:40]} 17. O-O {[%emt 0:01:20]} Rc4 {[%emt 0:00:41]} 18. Rd4 {[%emt 0:04:14]} Rxd4 {[%emt 0:06:58]} 19. exd4 {[%emt 0:00:09]} Bxc3 {[%emt 0:19:18]} 20. bxc3 {[%emt 0:04:25]} Qe7 {[%emt 0:00:29]} 21. Re1 {[%emt 0:02:23]} Rd8 {[%emt 0:00:24]} 22. Re3 {[%emt 0:05:54]} b5 {[%emt 0:01:40]} 23. Qe2 {[%emt 0:01:55]} a6 {[%emt 0:00:24]} 24. Qe1 {[%emt 0:03:23]} Rd6 {[%emt 0:00:37]} 25. Qc1 {[%emt 0:06:31]} Qd8 {[%emt 0:00:16]} 26. Re5 {[%emt 0:13:01]} Rc6 {[%emt 0:00:18]} 27. Bxf6 {[%emt 0:02:44]} Qxf6 {[%emt 0:00:08]} 28. Bxd5 {[%emt 0:01:49]} Bxd5 {[%emt 0:00:05]} 29. Rxd5 {[%emt 0:00:06]} Re6 {[%emt 0:01:29]} 30. Kf1 {[%emt 0:05:55]} Qg6 {[%emt 0:01:22]} 31. Rd8+ {[%emt 0:05:20]} Kh7 {[%emt 0:00:04]} 32. d5 {[%emt 0:01:15]} Re5 {[%emt 0:00:34]} 33. Qd1 {[%emt 0:01:36]} Rg5 {[%emt 0:00:53]} 34. g3 {[%emt 0:01:33]} Rf5 {[%emt 0:00:30]} 35. Qc2 {[%emt 0:01:21]} h5 {[%emt 0:00:32]} 36. Kg1 {[%emt 0:01:57]} Qg5 {[%emt 0:00:21]} 37. Qe4 {[%emt 0:00:54]} g6 {[%emt 0:00:40]} 38. Qe8 {[%emt 0:00:57]} Qc1+ {[%emt 0:00:11]} 39. Kg2 {[%emt 0:00:19]} Qxc3 {[%emt 0:00:04]} 40. Qg8+ {[%emt 0:00:31]} Kh6 {[%emt 0:00:04]} 41. Qf8+ {[%emt 0:30:23]} Qg7 {[%emt 0:31:32]} 42. Qe7 {[%emt 0:00:46]} Re5 {[%emt 0:00:00]} 43. d6 {[%emt 0:00:00]} Re6 {[%emt 0:00:00]} 44. Qc7 {[%emt 0:00:00]} Qd4 {[%emt 0:00:00]} 45. Qxf7 {[%emt 0:00:00]} Rf6 {[%emt 0:00:00]} 46. Rh8+ {[%emt 0:00:00]} Kg5 {[%emt 0:00:00]} 47. f4+ {[%emt 0:00:00]} Kf5 {[%emt 0:00:00]} 48. Qd7+ {[%emt 0:00:00]} Ke4 {[%emt 0:00:00]} 49. Qe7+ {[%emt 0:00:00]} Kd3 {[%emt 0:00:00]} 50. d7 {[%emt 0:00:00]} Rc6 {[%emt 0:04:03]} 51. d8=Q {[%emt 0:00:00]} Rc2+ {[%emt 0:00:10]} 52. Kf1 {[%emt 0:00:00]} Rc1+ {[%emt 0:00:15]} 53. Qe1 {[%emt 0:00:00]} 1-0

[Event "45th FIDE Womens Olympiad 2024"]
[Site "Budapest"]
[Date "2024.09.13"]
[Round "3.16"]
[White "Kiolbasa, Oliwia"]
[Black "Makropoulou, Marina"]
[Result "1-0"]
[ECO "E53"]
[WhiteElo "2348"]
[BlackElo "2103"]
[Annotator "RC"]
[PlyCount "95"]
[EventDate "2024.09.05"]
[EventType "team-tourn"]
[EventCountry "HUN"]
[SourceTitle "playchess.com"]
[Source "ChessBase"]
[SourceQuality "1"]
[WhiteTeam "Poland"]
[BlackTeam "Greece"]
[WhiteTeamCountry "POL"]
[BlackTeamCountry "GRE"]
[TimeControl "40/5400+30:1800+30"]

1. d4 {[%emt 0:00:04]} Nf6 {[%emt 0:00:19]} 2. c4 {[%emt 0:00:10]} e6 {[%emt 0:00:19]} 3. Nc3 {[%emt 0:00:10]} Bb4 {[%emt 0:00:30]} 4. e3 {[%emt 0:00:39]} O-O {[%emt 0:02:06]} 5. Bd3 {[%emt 0:00:41]} d5 {[%emt 0:06:24]} 6. a3 {[%emt 0:00:35]} Bxc3+ {[%emt 0:02:17]} 7. bxc3 {[%emt 0:03:11]} dxc4 {[%emt 0:00:05]} 8. Bxc4 {[%emt 0:00:16]} c5 {[%emt 0:00:02]} 9. Nf3 {[%emt 0:01:18]} Qc7 {[%emt 0:00:41]} 10. Be2 {[%emt 0:00:51]} b6 {[%emt 0:03:27]} 11. Bb2 {[%emt 0:01:18]} Bb7 {[%emt 0:01:51]} 12. O-O {[%emt 0:00:45]} Rd8 {[%emt 0:01:27]} 13. Re1 {[%emt 0:05:10]} Nc6 {[%emt 0:04:57]} 14. Rc1 {[%emt 0:03:26]} Rac8 {[%emt 0:03:58]} 15. h3 {[%emt 0:13:40]} h6 {[%emt 0:02:54]} 16. Bf1 {[%emt 0:16:49]} Na5 {[%emt 0:18:21]} 17. c4 {[%emt 0:08:32]} Qe7 {[%emt 0:12:46]} 18. Ne5 {[%emt 0:14:51]} Nc6 {[%emt 0:03:30]} 19. Ng4 {[%emt 0:05:14]} Nxg4 {[%emt 0:05:57]} 20. Qxg4 {[%emt 0:00:05]} Qg5 {[%emt 0:01:33]} 21. dxc5 {[%emt 0:04:32]} Qxg4 {[%emt 0:03:20]} 22. hxg4 {[%emt 0:00:05]} bxc5 {[%emt 0:00:06]} 23. Bc3 {[%emt 0:00:13]} e5 {[%emt 0:02:07]} 24. Red1 {[%emt 0:04:03]} f6 {[%emt 0:00:29]} 25. Bd3 {[%emt 0:01:00]} Ba6 {[%emt 0:07:30]} 26. Bf5 {[%emt 0:02:19]} Rxd1+ {[%emt 0:04:12]} 27. Rxd1 {[%emt 0:00:06]} Rd8 {[%emt 0:00:08]} 28. Rd5 {[%emt 0:03:02]} Rxd5 {[%emt 0:06:51]} 29. cxd5 {[%emt 0:00:34]} Nd8 {[%emt 0:00:22]} 30. Ba5 {[%emt 0:02:45]} Nb7 {[%emt 0:02:46]} 31. Bc7 {[%emt 0:00:05]} g6 {[%emt 0:02:35]} 32. Bxg6 {[%emt 0:03:45]} Kf8 {[%emt 0:00:33]} 33. d6 {[%emt 0:01:06]} c4 {[%emt 0:00:16]} 34. Kf1 {[%emt 0:01:33]} Nc5 {[%emt 0:00:22]} 35. Ke1 {[%emt 0:00:52]} Bb5 {[%emt 0:00:15]} 36. Kd2 {[%emt 0:01:17]} Bd7 {[%emt 0:02:06]} 37. f3 {[%emt 0:00:25]} Be6 {[%emt 0:00:18]} 38. Bd8 {[%emt 0:02:31]} Kg7 {[%emt 0:00:27]} 39. Bf5 {[%emt 0:01:12]} Kf7 {[%emt 0:00:12]} 40. Kc3 {[%emt 0:00:43]} Na4+ {[%emt 0:01:35]} 41. Kb4 {[%emt 0:05:57]} Bxf5 {[%emt 0:13:37]} 42. gxf5 {[%emt 0:01:53]} c3 {[%emt 0:00:05]} 43. Kb3 {[%emt 0:00:24]} h5 {[%emt 0:00:17]} 44. Ba5 {[%emt 0:05:18]} c2 {[%emt 0:12:08]} 45. Kxc2 {[%emt 0:00:55]} Ke8 {[%emt 0:00:27]} 46. Kb3 {[%emt 0:01:32]} Nc5+ {[%emt 0:02:00]} 47. Kc4 {[%emt 0:01:18]} Na4 {[%emt 0:02:09]} 48. Kb5 {[%emt 0:00:48]} 1-0

[Event "45th FIDE Womens Olympiad 2024"]
[Site "Budapest"]
[Date "2024.09.13"]
[Round "3.16"]
[White "Nacario, Ruth"]
[Black "Richards, TrisAnn"]
[Result "0-1"]
[ECO "D38"]
[WhiteElo "1607"]
[BlackElo "1653"]
[Annotator "NA"]
[PlyCount "138"]
[EventDate "2024.09.05"]
[EventType "team-tourn"]
[EventCountry "HUN"]
[SourceTitle "playchess.com"]
[Source "ChessBase"]
[SourceQuality "1"]
[WhiteTeam "Guam"]
[BlackTeam "Saint Lucia"]
[WhiteTeamCountry "GMA"]
[TimeControl "40/5400+30:1800+30"]

1. d4 Nf6 2. c4 e6 3. Nc3 Bb4 4. Bg5 O-O 5. Nf3 d5 6. e3 b6 7. cxd5 exd5 8. a3 Bxc3+ 9. bxc3 Bb7 10. Bd3 Nbd7 11. h3 Qe8 12. Bf4 Ne4 13. Qc2 c5 14. O-O c4 15. Be2 h6 16. Nd2 Ndf6 17. Be5 Nxd2 18. Qxd2 Ne4 19. Qc1 Qe7 20. f3 Ng5 21. Qe1 Qe6 22. Qg3 Qg6 23. Kh1 Ne6 24. Qe1 f6 25. Bd6 Rfe8 26. Bd1 Rad8 27. Bh2 Nf8 28. Ba4 Re6 29. Bc7 Ra8 30. Ra2 Bc6 31. Bc2 Qe8 32. e4 dxe4 33. fxe4 Bxe4 34. Bxe4 Rxe4 35. Qg3 Re3 36. Qg4 Qg6 37. Qf4 Rxc3 38. Qd6 Qe4 39. Raf2 Rd3 40. Rf4 Qe6 41. Qb4 Rc8 42. Bd6 Qe3 43. Re1 Qd2 44. Qb1 Rxd4 45. Rxd4 Qxd4 46. Rd1 Qc3 47. Bb4 Qg3 48. Be1 Qxa3 49. Qf5 Qa6 50. Bc3 Qb7 51. Qg4 Kh8 52. Rf1 Qd7 53. Qe2 Qd3 54. Qxd3 cxd3 55. Bd2 Ng6 56. g3 Ne5 57. Kg2 Rc2 58. Rf2 a5 59. g4 a4 60. Kg3 a3 61. Kf4 a2 62. Rf1 Rxd2 63. Ke3 Re2+ 64. Kd4 d2 65. Rd1 Re1 66. Rxd2 a1=Q+ 67. Kd5 Qa5+ 68. Ke6 Qxd2 69. Ke7 Qd7+ 0-1

[Event "45th FIDE Womens Olympiad 2024"]
[Site "Budapest"]
[Date "2024.09.13"]
[Round "3.17"]
[White "Zhu, Jiner"]
[Black "Brunello, Marina"]
[Result "1-0"]
[ECO "B12"]
[WhiteElo "2487"]
[BlackElo "2348"]
[Annotator "RC"]
[PlyCount "97"]
[EventDate "2024.09.05"]
[EventType "team-tourn"]
[EventCountry "HUN"]
[SourceTitle "playchess.com"]
[Source "ChessBase"]
[SourceQuality "1"]
[WhiteTeam "China"]
[BlackTeam "Italy"]
[WhiteTeamCountry "CHN"]
[BlackTeamCountry "ITA"]
[TimeControl "40/5400+30:1800+30"]

1. e4 {[%emt 0:00:07]} c6 {[%emt 0:00:06]} 2. d4 {[%emt 0:00:17]} d5 {[%emt 0:00:04]} 3. e5 {[%emt 0:00:07]} Bf5 {[%emt 0:00:11]} 4. Nf3 {[%emt 0:00:33]} e6 {[%emt 0:00:11]} 5. Be2 {[%emt 0:00:10]} Nd7 {[%emt 0:00:14]} 6. O-O {[%emt 0:02:07]} a5 {[%emt 0:00:08]} 7. Ne1 {[%emt 0:00:44]} Ne7 {[%emt 0:13:51]} 8. c3 {[%emt 0:00:20]} c5 {[%emt 0:00:34]} 9. Na3 {[%emt 0:00:35]} Nc6 {[%emt 0:00:57]} 10. Nb5 {[%emt 0:20:01]} a4 {[%emt 0:07:18]} 11. Be3 {[%emt 0:03:31]} c4 {[%emt 0:01:49]} 12. Na3 {[%emt 0:10:38]} b5 {[%emt 0:19:46]} 13. g4 {[%emt 0:02:02]} Be4 {[%emt 0:01:13]} 14. f3 {[%emt 0:00:09]} Bg6 {[%emt 0:00:03]} 15. f4 {[%emt 0:00:11]} Be4 {[%emt 0:00:35]} 16. Bf3 {[%emt 0:04:24]} Bxf3 {[%emt 0:13:25]} 17. Qxf3 {[%emt 0:00:18]} Bxa3 {[%emt 0:01:35]} 18. bxa3 {[%emt 0:00:07]} Qe7 {[%emt 0:02:31]} 19. Nc2 {[%emt 0:07:36]} h5 {[%emt 0:06:21]} 20. Rab1 {[%emt 0:08:38]} Na7 {[%emt 0:04:13]} 21. f5 {[%emt 0:03:28]} g6 {[%emt 0:02:06]} 22. fxg6 {[%emt 0:14:37]} fxg6 {[%emt 0:00:06]} 23. g5 {[%emt 0:00:05]} Rf8 {[%emt 0:01:04]} 24. Qg2 {[%emt 0:00:10]} O-O-O {[%emt 0:00:23]} 25. Rf6 {[%emt 0:02:31]} Nxf6 {[%emt 0:07:48]} 26. gxf6 {[%emt 0:00:07]} Qh7 {[%emt 0:01:21]} 27. h4 {[%emt 0:00:16]} Kb7 {[%emt 0:01:50]} 28. Rf1 {[%emt 0:00:40]} Nc6 {[%emt 0:00:31]} 29. Ne1 {[%emt 0:00:30]} Rd7 {[%emt 0:02:10]} 30. Nf3 {[%emt 0:00:22]} Nd8 {[%emt 0:01:18]} 31. Ng5 {[%emt 0:00:54]} Qg8 {[%emt 0:00:07]} 32. Qb2 {[%emt 0:00:52]} Ka6 {[%emt 0:00:39]} 33. Qb4 {[%emt 0:01:32]} Re8 {[%emt 0:01:03]} 34. Qc5 {[%emt 0:03:01]} Rb7 {[%emt 0:04:12]} 35. Kh2 {[%emt 0:03:56]} Nf7 {[%emt 0:02:28]} 36. Nh3 {[%emt 0:00:17]} Rc8 {[%emt 0:02:05]} 37. Qb4 {[%emt 0:00:06]} Re8 {[%emt 0:01:04]} 38. Rg1 {[%emt 0:00:44]} Nh8 {[%emt 0:03:14]} 39. Qb1 {[%emt 0:01:49]} Qf7 {[%emt 0:00:11]} 40. Bh6 {[%emt 0:01:04]} Rg8 {[%emt 0:00:32]} 41. Ng5 {[%emt 0:39:09]} Qe8 {[%emt 0:02:06]} 42. Bg7 {[%emt 0:00:00]} Rc7 {[%emt 0:15:41]} 43. Bxh8 {[%emt 0:00:00]} Rxh8 {[%emt 0:00:04]} 44. Nh3 {[%emt 0:00:00]} Rg8 {[%emt 0:01:28]} 45. Nf4 {[%emt 0:00:00]} Rf7 {[%emt 0:00:19]} 46. Rxg6 {[%emt 0:00:00]} Rxg6 {[%emt 0:01:16]} 47. Qxg6 {[%emt 0:00:00]} Qf8 {[%emt 0:00:12]} 48. Nxe6 {[%emt 0:00:00]} Qxa3 {[%emt 0:01:35]} 49. Qxf7 {[%emt 0:00:00]} 1-0

[Event "45th FIDE Womens Olympiad 2024"]
[Site "Budapest"]
[Date "2024.09.13"]
[Round "3.17"]
[White "Magno, Angelica"]
[Black "Sele, Timea"]
[Result "1/2-1/2"]
[ECO "D37"]
[WhiteElo "1544"]
[BlackElo "1699"]
[Annotator "NA"]
[PlyCount "82"]
[EventDate "2024.09.05"]
[EventType "team-tourn"]
[EventCountry "HUN"]
[SourceTitle "playchess.com"]
[Source "ChessBase"]
[SourceQuality "1"]
[WhiteTeam "Palau"]
[BlackTeam "Liechtenstein"]
[WhiteTeamCountry "PAL"]
[BlackTeamCountry "LIE"]
[TimeControl "40/5400+30:1800+30"]

1. d4 d5 2. Nf3 Nf6 3. c4 e6 4. Nc3 Be7 5. Bf4 O-O 6. e3 b6 7. Be2 dxc4 8. O-O Bb7 9. Bxc4 Nbd7 10. Qe2 Nh5 11. Bg3 Nxg3 12. hxg3 c5 13. Rad1 cxd4 14. Rxd4 Bf6 15. Rd2 Qc7 16. Rfd1 Rfd8 17. Bb5 Nc5 18. Bc4 Bxc3 19. bxc3 Ne4 20. Rxd8+ Rxd8 21. Rxd8+ Qxd8 22. Qc2 Qc7 23. Bd3 Nxc3 24. Bxh7+ Kf8 25. Bd3 Nd5 26. Qb2 Qc3 27. Qe2 Nb4 28. Bc4 Bd5 29. Bxd5 Nxd5 30. Ng5 Qc6 31. Qf3 Qd7 32. e4 Nf6 33. e5 Nd5 34. Qh5 Ke7 35. Qxf7+ Kd8 36. Nxe6+ Kc8 37. Qf8+ Kb7 38. Qxg7 Ne7 39. Nf8 Qd1+ 40. Kh2 Qh5+ 41. Kg1 Qd1+ 1/2-1/2